bitfinex-derivatives/quotes_BTCF0:USTF0_20250903
["timestamp","ask_amount","ask_price","bid_price","bid_amount"]
[1756885888448,0.005,111020.0,111010.0,1.8379852]
[1756885890957,0.005,111020.0,111010.0,1.5079852]
[1756885891158,0.005,111020.0,111010.0,1.8379852]
[1756885892161,0.005,111020.0,111010.0,1.5079852]
[1756885892358,0.005,111020.0,111010.0,1.8479852]
[1756885894563,0.005,111020.0,111010.0,1.93806]
[1756885896864,0.003,111020.0,111010.0,1.93806]
[1756885897563,0.0001,111030.0,111010.0,1.90425]
[1756885897765,0.3101,111030.0,111020.0,0.4333052]
[1756885897957,0.31,111030.0,111020.0,0.76156497]
[1756885898559,0.31,111030.0,111020.0,0.85163097]
[1756885898759,0.0001,111040.0,111030.0,0.08145]
[1756885898962,0.34,111040.0,111030.0,1.2534852]
[1756885899759,0.34,111040.0,111030.0,0.90297]
[1756885900066,0.38651,111040.0,111030.0,1.2534852]
[1756885900366,0.3636,111040.0,111030.0,1.2534852]
[1756885900770,0.34,111040.0,111030.0,1.2534852]
[1756885901267,0.341,111040.0,111030.0,1.2534852]
[1756885901468,0.38877,111040.0,111030.0,0.4319652]
[1756885901769,0.41837,111040.0,111030.0,1.2534852]
[1756885902068,0.3942,111040.0,111030.0,1.2534852]
[1756885903067,0.3666,111040.0,111030.0,1.2534852]
[1756885904371,0.343,111040.0,111030.0,1.2534852]
[1756885904765,0.343,111040.0,111030.0,1.6034852]
[1756885905262,0.343,111040.0,111030.0,0.90297]
[1756885905469,0.3666,111040.0,111030.0,1.6034852]
[1756885907169,0.343,111040.0,111030.0,1.6034852]
[1756885907366,0.343,111040.0,111030.0,1.6334852]
[1756885908073,0.343,111040.0,111030.0,0.4319652]
[1756885908271,0.343,111040.0,111030.0,1.5633652]
[1756885909973,0.163,111040.0,111030.0,1.5633652]
[1756885910173,0.163,111040.0,111030.0,1.21285]
[1756885910364,0.1866,111040.0,111030.0,1.6133652]
[1756885910674,0.163,111040.0,111030.0,1.6133652]
[1756885912873,0.23837,111040.0,111030.0,1.2533252]
[1756885913073,0.23837,111040.0,111030.0,1.5833252]
[1756885913274,0.21077,111040.0,111030.0,1.5833252]
[1756885913665,0.1866,111040.0,111030.0,1.5833252]
[1756885916077,0.163,111040.0,111030.0,1.5833252]
[1756885920979,0.163,111040.0,111030.0,1.5878252]
[1756885923081,0.21077,111040.0,111030.0,1.5977052]
[1756885923383,0.23837,111040.0,111030.0,1.5677052]
[1756885925480,0.21077,111040.0,111030.0,1.5677052]
[1756885925869,0.23837,111040.0,111030.0,0.7464652]
[1756885926066,0.23837,111040.0,111030.0,1.2577052]
[1756885926269,0.45837,111040.0,111030.0,1.2576652]
[1756885927482,0.45837,111040.0,111030.0,1.17004454]
[1756885929181,0.45837,111040.0,111030.0,0.90715]
[1756885929379,0.45837,111040.0,111030.0,1.17004454]
[1756885929876,0.72126454,111040.0,111030.0,0.08595]
[1756885930082,0.99333429,111040.0,111030.0,1.17000454]
[1756885930285,0.99333429,111040.0,111030.0,0.34884454]
[1756885930479,0.99333429,111040.0,111030.0,1.17000454]
[1756885930874,0.99333429,111040.0,111030.0,0.90711]
[1756885931080,0.99333429,111040.0,111030.0,1.17000454]
[1756885932884,0.74333429,111040.0,111030.0,1.17000454]
[1756885933182,1.25622883,111040.0,111030.0,0.08595]
[1756885933392,1.25622883,111040.0,111030.0,0.90711]
[1756885933774,0.99333429,111040.0,111030.0,0.90711]
[1756885933978,0.73043975,111040.0,111030.0,0.90711]
[1756885934179,1.25622883,111040.0,111030.0,0.90711]
[1756885934987,0.99333429,111040.0,111030.0,0.90711]
[1756885935995,0.99333429,111040.0,111030.0,1.17000454]
[1756885938192,0.99333429,111040.0,111030.0,0.90711]
[1756885938493,1.25622883,111040.0,111030.0,0.87285]
[1756885938690,1.25622883,111040.0,111030.0,0.90693]
[1756885939190,0.99333429,111040.0,111030.0,0.90693]
[1756885941390,0.99333429,111040.0,111030.0,1.16982454]
[1756885942891,0.99333429,111040.0,111030.0,0.90693]
[1756885943090,0.99333429,111040.0,111030.0,1.16982454]
[1756885946192,0.73043975,111040.0,111030.0,1.16982454]
[1756885950601,0.99333429,111040.0,111030.0,1.16974454]
[1756885951696,0.73043975,111040.0,111030.0,1.16974454]
[1756885952000,0.99333429,111040.0,111030.0,1.16974454]
[1756885958609,0.73043975,111040.0,111030.0,1.16974454]
[1756885958811,0.99333429,111040.0,111030.0,1.16974454]
[1756885959918,0.99333429,111040.0,111030.0,0.90685]
[1756885960110,0.99333429,111040.0,111030.0,1.16974454]
[1756885962910,1.00622883,111040.0,111030.0,0.08577]
[1756885963115,2.07722883,111040.0,111030.0,0.0045]
[1756885963610,2.07722883,111040.0,111030.0,0.02905]
[1756885963807,1.55143975,111040.0,111030.0,0.05341]
[1756885964006,2.07722883,111040.0,111030.0,0.05341]
[1756885967114,1.25622883,111040.0,111030.0,0.05341]
[1756885967311,2.07722883,111040.0,111030.0,0.35132454]
[1756885967714,1.25622883,111040.0,111030.0,0.35132454]
[1756885968109,1.81433429,111040.0,111030.0,0.35132454]
[1756885969617,0.99333429,111040.0,111030.0,0.35132454]
[1756885969817,1.81429429,111040.0,111030.0,0.35132454]
[1756885970123,0.99333429,111040.0,111030.0,0.35132454]
[1756885970327,1.81429429,111040.0,111030.0,0.35132454]
[1756885971922,0.48043975,111040.0,111030.0,0.35132454]
[1756885972123,0.42866975,111040.0,111030.0,0.95132454]
[1756885972315,0.42818975,111040.0,111030.0,0.95132454]
[1756885972515,0.40506975,111040.0,111030.0,1.21421908]
[1756885972917,0.02506975,111040.0,111030.0,1.21421908]
[1756885973120,0.003,111040.0,111030.0,1.21421908]
[1756885976516,0.003,111040.0,111030.0,1.30427778]
[1756885979224,0.003,111040.0,111030.0,0.96421908]
[1756885980424,0.003,111040.0,111030.0,1.78505908]
[1756885980725,0.003,111040.0,111030.0,1.25927]
[1756885980923,0.003,111040.0,111030.0,1.78505908]
[1756885981625,0.003,111040.0,111030.0,0.96421908]
[1756885981926,0.003,111040.0,111030.0,1.78505908]
[1756885989428,0.003,111040.0,111030.0,1.60968843]
[1756885990624,0.003,111040.0,111030.0,0.78884843]
[1756885990825,0.003,111040.0,111030.0,1.60956843]
[1756885991933,0.003,111040.0,111030.0,0.78884843]
[1756885992130,0.003,111040.0,111030.0,1.60952843]
[1756885992633,0.003,111040.0,111030.0,0.78884843]
[1756885992833,0.003,111040.0,111030.0,1.60952843]
[1756885995535,0.003,111040.0,111030.0,1.25911]
[1756885995733,0.003,111040.0,111030.0,1.60952843]
[1756886003739,0.003,111040.0,111030.0,1.69958633]
[1756886005842,0.003,111040.0,111030.0,2.30000476]
[1756886006234,0.003,111040.0,111030.0,1.47932476]
[1756886006435,0.003,111040.0,111030.0,1.94938633]
[1756886006835,0.003,111040.0,111030.0,0.7784879]
[1756886007037,0.003,111040.0,111030.0,1.94938613]
[1756886010744,0.003,111040.0,111030.0,1.62928843]
[1756886010950,0.003,111040.0,111030.0,1.02884843]
[1756886011141,0.003,111040.0,111030.0,1.84928843]
[1756886014554,0.003,111040.0,111030.0,1.84924843]
[1756886017956,0.003,111040.0,111030.0,1.83920843]
[1756886018856,0.07917,111040.0,111030.0,0.43884843]
[1756886019060,0.07917,111040.0,111030.0,1.25920843]
[1756886020354,0.07917,111040.0,111030.0,0.43884843]
[1756886020561,0.07917,111040.0,111030.0,1.25916843]
[1756886020959,0.07917,111040.0,111030.0,1.63916843]
[1756886021959,0.05157,111040.0,111030.0,1.63916843]
[1756886022760,0.0278,111040.0,111030.0,1.63916843]
[1756886022955,0.003,111040.0,111030.0,1.63916843]
[1756886025962,0.0306,111040.0,111030.0,1.63916843]
[1756886027165,0.003,111040.0,111030.0,1.63916843]
[1756886031658,0.003,111040.0,111030.0,1.72922613]
[1756886033070,0.003,111040.0,111030.0,2.07964456]
[1756886033261,0.003,111040.0,111030.0,1.3788077]
[1756886033463,0.003,111040.0,111030.0,1.72922613]
[1756886035568,0.003,111040.0,111030.0,1.97922613]
[1756886039171,0.003,111040.0,111030.0,1.72922613]
[1756886051581,0.003,111040.0,111030.0,1.90436618]
[1756886055785,0.003,111040.0,111030.0,2.24791633]
[1756886056287,0.003,111040.0,111030.0,1.98513709]
[1756886056786,0.003,111040.0,111030.0,2.24791633]
[1756886057378,0.003,111040.0,111030.0,2.16714542]
[1756886057781,0.003,111040.0,111030.0,2.24791633]
[1756886059188,0.70667924,111080.0,111030.0,2.24791633]
[1756886059189,0.0276,111070.0,111060.0,0.03713]
[1756886059416,0.0779,111080.0,111070.0,0.08505]
[1756886059687,0.44990316,111080.0,111070.0,0.34782924]
[1756886060382,0.4279,111080.0,111070.0,0.61060848]
[1756886060987,0.4279,111080.0,111070.0,0.61510848]
[1756886061291,0.4279,111080.0,111070.0,0.35232924]
[1756886061593,0.4279,111080.0,111070.0,0.08955]
[1756886061779,0.69067924,111080.0,111070.0,0.25903]
[1756886061977,0.4279,111080.0,111070.0,0.52180924]
[1756886062485,0.4289,111080.0,111070.0,0.52180924]
[1756886065788,0.4289,111080.0,111070.0,0.5308158]
[1756886069083,0.4289,111080.0,111070.0,0.79359504]
[1756886069693,0.4289,111080.0,111070.0,0.5308158]
[1756886071286,0.4289,111080.0,111070.0,0.79359504]
[1756886071589,0.4289,111080.0,111070.0,1.10359504]
[1756886071893,0.101,111080.0,111070.0,1.10359504]
[1756886072395,0.001,111080.0,111070.0,1.10359504]
[1756886073190,0.071,111080.0,111070.0,1.10359504]
[1756886073691,0.001,111080.0,111070.0,1.44362164]
[1756886076492,0.001,111080.0,111070.0,1.27414164]
[1756886076679,0.001,111080.0,111070.0,2.09406164]
[1756886078391,0.015,111100.0,111090.0,0.04802]
[1756886078593,0.40334,111100.0,111090.0,1.44695703]
[1756886078791,0.43304,111100.0,111090.0,1.79695703]
[1756886078988,0.43304,111100.0,111090.0,1.44695703]
[1756886079294,0.43304,111100.0,111090.0,1.81691703]
[1756886079484,0.43304,111100.0,111090.0,0.10159855]
[1756886079683,0.43304,111100.0,111090.0,0.78689779]
[1756886079888,0.43604,111100.0,111090.0,0.78689779]
[1756886080198,0.43904,111100.0,111090.0,0.78689779]
[1756886082897,0.43904,111100.0,111090.0,0.79139779]
[1756886083293,0.95181924,111100.0,111090.0,1.18859779]
[1756886083501,0.68904,111100.0,111090.0,1.18859779]
[1756886083701,0.95181924,111100.0,111090.0,1.18859779]
[1756886084703,0.95181924,111100.0,111090.0,0.36887779]
[1756886085004,0.95181924,111100.0,111090.0,1.01189924]
[1756886085204,0.68904,111100.0,111090.0,1.01189924]
[1756886086095,0.95181924,111100.0,111090.0,1.01189924]
[1756886087599,0.68904,111100.0,111090.0,1.01189924]
[1756886089004,0.95181924,111100.0,111090.0,1.01189924]
[1756886090105,0.68904,111100.0,111090.0,1.01189924]
[1756886090315,0.95181924,111100.0,111090.0,1.01189924]
[1756886092706,0.70181924,111100.0,111090.0,1.16997924]
[1756886093009,0.70181924,111100.0,111090.0,0.05252]
[1756886093195,0.99384965,111100.0,111090.0,0.24369]
[1756886093804,0.99384965,111100.0,111090.0,0.50646924]
[1756886093805,0.73107041,111100.0,111090.0,0.50646924]
[1756886094005,0.72377041,111100.0,111090.0,0.54150924]
[1756886094200,0.72377041,111100.0,111090.0,0.53730924]
[1756886094903,0.98654965,111100.0,111090.0,0.53730924]
[1756886095105,0.98654965,111100.0,111090.0,0.23949]
[1756886095407,0.72377041,111100.0,111090.0,0.50226924]
[1756886095902,1.23654965,111100.0,111090.0,0.04653]
[1756886096108,1.24804965,111100.0,111090.0,0.0045]
[1756886099210,0.99804965,111100.0,111090.0,0.0045]
[1756886100317,1.51082889,111100.0,111080.0,0.0001]
[1756886100505,0.07656,111080.0,111070.0,0.08127]
[1756886100813,0.98406965,111080.0,111070.0,0.08127]
[1756886101312,0.63301791,111080.0,111070.0,0.04623]
[1756886101504,0.97301791,111080.0,111070.0,0.04623]
[1756886101705,0.97301791,111080.0,111070.0,0.08127]
[1756886102506,0.14851117,111080.0,111070.0,0.08127]
[1756886102712,0.94406965,111080.0,111070.0,0.08127]
[1756886103307,0.94506965,111080.0,111070.0,0.34404924]
[1756886103809,0.68229041,111080.0,111070.0,0.34404924]
[1756886104208,0.38229041,111080.0,111070.0,0.34404924]
[1756886104706,0.36229041,111080.0,111070.0,0.34404924]
[1756886104900,0.36229041,111080.0,111070.0,0.08127]
[1756886105105,0.09951117,111080.0,111070.0,0.34404924]
[1756886105311,0.36229041,111080.0,111070.0,0.34404924]
[1756886107420,0.67229041,111080.0,111070.0,0.34404924]
[1756886108619,0.67229041,111080.0,111070.0,0.08127]
[1756886108818,0.67229041,111080.0,111070.0,0.34404924]
[1756886109320,0.67229041,111080.0,111070.0,0.08127]
[1756886109524,0.38229041,111080.0,111070.0,0.34404924]
[1756886110623,0.36229041,111080.0,111070.0,0.34404924]
[1756886110923,0.38229041,111080.0,111070.0,0.34404924]
[1756886112429,0.36229041,111080.0,111070.0,0.34404924]
[1756886112624,0.38229041,111080.0,111070.0,0.34404924]
[1756886113425,0.11951117,111080.0,111070.0,0.08127]
[1756886115823,0.09756,111080.0,111070.0,0.08127]
[1756886116223,0.07756,111080.0,111070.0,0.08127]
[1756886116522,0.09756,111080.0,111070.0,0.08127]
[1756886117932,0.39756,111080.0,111070.0,0.08127]
[1756886118520,0.41756,111080.0,111070.0,0.08127]
[1756886118727,0.07756,111080.0,111070.0,0.08127]
[1756886119031,0.42756,111080.0,111070.0,0.08127]
[1756886119332,0.09756,111080.0,111070.0,0.08127]
[1756886119529,0.46945033,111080.0,111070.0,0.08127]
[1756886120929,0.81976954,111080.0,111070.0,0.08127]
[1756886126240,0.81976954,111080.0,111070.0,0.04623]
[1756886126745,0.81976954,111080.0,111070.0,0.08064]
[1756886127041,0.81976954,111080.0,111070.0,0.04623]
[1756886128939,0.0294,111070.0,111060.0,0.38472921]
[1756886129144,0.81147954,111070.0,111060.0,0.08157]
[1756886129645,0.46116033,111070.0,111060.0,0.08157]
[1756886130348,0.81147954,111070.0,111060.0,0.02492]
[1756886130547,0.81147954,111070.0,111060.0,0.001]
[1756886130845,0.81147954,111070.0,111060.0,0.04816]
[1756886131247,0.43116033,111070.0,111060.0,0.08257]
[1756886132049,0.43216033,111070.0,111060.0,0.08257]
[1756886132248,0.43216033,111070.0,111060.0,0.43288921]
[1756886133651,0.43116033,111070.0,111060.0,0.43188921]
[1756886134052,0.40176033,111070.0,111060.0,0.43188921]
[1756886134254,0.40176033,111070.0,111060.0,0.08157]
[1756886134451,0.40176033,111070.0,111060.0,0.43188921]
[1756886134755,0.40176033,111070.0,111060.0,0.43288921]
[1756886135255,0.43116033,111070.0,111060.0,0.43288921]
[1756886136155,0.43116033,111070.0,111060.0,0.08257]
[1756886136355,0.43116033,111070.0,111060.0,0.43288921]
[1756886144762,0.43116033,111070.0,111060.0,0.08257]
[1756886145062,0.43116033,111070.0,111060.0,0.43288921]
[1756886148966,0.43116033,111070.0,111060.0,0.08257]
[1756886149167,0.43116033,111070.0,111060.0,0.43288921]
[1756886149764,0.43116033,111070.0,111060.0,0.08257]
[1756886149968,0.43116033,111070.0,111060.0,0.43288921]
[1756886150171,0.43116033,111070.0,111060.0,0.08257]
[1756886151768,0.43116033,111070.0,111060.0,0.43288921]
[1756886152266,0.43116033,111070.0,111060.0,0.43738921]
[1756886153367,0.43116033,111070.0,111060.0,0.08707]
[1756886153571,0.43116033,111070.0,111060.0,0.43738921]
[1756886157374,0.16116033,111070.0,111060.0,0.43738921]
[1756886157561,0.07176033,111070.0,111060.0,0.43738921]
[1756886158061,0.04685033,111070.0,111060.0,0.43738921]
[1756886159171,0.04685033,111070.0,111060.0,0.08707]
[1756886159470,0.04685033,111070.0,111060.0,0.43738921]
[1756886160874,0.02496,111070.0,111060.0,0.43738921]
[1756886161072,0.07746,111080.0,111070.0,0.03579]
[1756886161273,0.44930242,111080.0,111070.0,0.43435921]
[1756886163176,0.45030242,111080.0,111070.0,0.43435921]
[1756886167273,0.39758242,111080.0,111070.0,0.68435921]
[1756886167472,0.351,111080.0,111070.0,0.68435921]
[1756886167776,0.02564,111080.0,111070.0,0.68435921]
[1756886167976,0.18896,111080.0,111070.0,0.68435921]
[1756886168373,0.141,111080.0,111070.0,0.68435921]
[1756886169577,0.141,111080.0,111070.0,0.68885921]
[1756886169884,0.02564,111080.0,111070.0,1.50853921]
[1756886170472,0.001,111080.0,111070.0,1.50853921]
[1756886171484,0.001,111080.0,111070.0,1.71856591]
[1756886171676,0.001,111080.0,111070.0,1.96856591]
[1756886172282,0.001,111080.0,111070.0,2.31888512]
[1756886174785,0.001,111080.0,111070.0,2.38322668]
[1756886175487,0.001,111080.0,111070.0,2.2077123]
[1756886175689,0.001,111080.0,111070.0,2.47027432]
[1756886176187,0.001,111080.0,111070.0,2.47015432]
[1756886176579,0.001,111080.0,111070.0,2.2075923]
[1756886178284,0.001,111080.0,111070.0,1.3880323]
[1756886178484,0.001,111080.0,111070.0,2.2075523]
[1756886179681,0.001,111080.0,111070.0,2.47011432]
[1756886180187,0.0001,111090.0,111080.0,0.0900186]
[1756886180489,0.09214,111100.0,111090.0,0.08546]
[1756886180784,0.47204,111100.0,111090.0,1.43010404]
[1756886180978,0.44264,111100.0,111090.0,1.43010404]
[1756886181684,0.47204,111100.0,111090.0,1.43010404]
[1756886182085,0.47204,111100.0,111090.0,1.78010404]
[1756886182291,0.47204,111100.0,111090.0,1.43010404]
[1756886182990,0.015,111100.0,111090.0,1.43010404]
[1756886183193,0.195,111100.0,111090.0,1.75010404]
[1756886183589,0.197,111100.0,111090.0,1.75010404]
[1756886183785,0.2,111100.0,111090.0,1.84011454]
[1756886183995,0.02,111100.0,111090.0,1.84011454]
[1756886184483,0.02,111100.0,111090.0,0.70059454]
[1756886184686,0.02,111100.0,111090.0,1.86003454]
[1756886185294,0.02,111100.0,111090.0,1.52003454]
[1756886185592,0.017,111100.0,111090.0,1.08059454]
[1756886185793,0.017,111100.0,111090.0,1.86003454]
[1756886186389,0.015,111100.0,111090.0,1.86003454]
[1756886187492,0.015,111100.0,111090.0,1.04059454]
[1756886188095,0.015,111100.0,111090.0,1.85999454]
[1756886191498,0.015,111100.0,111090.0,0.95058404]
[1756886191798,0.015,111100.0,111090.0,1.76990404]
[1756886195296,0.06264,111100.0,111090.0,1.76990404]
[1756886195501,0.09204,111100.0,111090.0,1.43440404]
[1756886195702,0.09204,111100.0,111090.0,1.78440404]
[1756886195902,0.03938,111100.0,111090.0,1.78440404]
[1756886199102,0.015,111100.0,111090.0,1.78440404]
[1756886200094,0.015,111100.0,111090.0,1.87441454]
[1756886201007,0.015,111100.0,111090.0,1.78440404]
[1756886202104,0.015,111100.0,111090.0,2.12441464]
[1756886202304,0.015,111100.0,111090.0,2.1887562]
[1756886216735,0.015,111100.0,111090.0,2.0987456]
[1756886218141,0.015,111100.0,111090.0,2.1887561]
[1756886218639,0.015,111100.0,111090.0,1.87421454]
[1756886218934,0.015,111100.0,111090.0,1.78420404]
[1756886220932,0.015,111100.0,111090.0,1.86497495]
[1756886221526,0.015,111100.0,111090.0,1.04585495]
[1756886221838,0.015,111100.0,111090.0,1.86493495]
[1756886224040,0.015,111100.0,111090.0,1.92942459]
[1756886224241,0.015,111100.0,111090.0,1.84865368]
[1756886227949,0.015,111100.0,111090.0,1.93866408]
[1756886231437,0.015,111100.0,111090.0,2.2012261]
[1756886233148,0.015,111100.0,111090.0,1.93866408]
[1756886234045,0.015,111100.0,111090.0,1.02957368]
[1756886234259,0.015,111100.0,111090.0,1.78404404]
[1756886234461,0.015,111100.0,111090.0,1.95482495]
[1756886235453,0.015,111100.0,111090.0,1.77971636]
[1756886235751,0.015,111100.0,111090.0,1.68970636]
[1756886236756,0.015,111100.0,111090.0,0.87074636]
[1756886236954,0.015,111100.0,111090.0,1.68970636]
[1756886237454,0.015,111100.0,111090.0,0.87074636]
[1756886237642,0.015,111100.0,111090.0,1.68970636]
[1756886238356,0.015,111100.0,111090.0,1.77971636]
[1756886238650,0.0001,111110.0,111100.0,0.1878819]
[1756886238851,0.0001,111120.0,111110.0,0.03565]
[1756886239048,0.07804,111140.0,111130.0,0.08393]
[1756886239252,0.40063198,111140.0,111130.0,1.58286545]
[1756886239464,0.43013198,111140.0,111130.0,1.58286545]
[1756886239659,0.43013198,111140.0,111130.0,1.25286545]
[1756886239954,0.43013198,111140.0,111130.0,1.25735545]
[1756886240355,0.43013198,111140.0,111130.0,1.26644745]
[1756886240855,0.40814,111140.0,111130.0,1.26644745]
[1756886241750,0.41014,111140.0,111130.0,1.26644745]
[1756886242357,0.41514,111140.0,111130.0,1.26644745]
[1756886242960,0.41314,111140.0,111130.0,1.26644745]
[1756886250168,0.41314,111140.0,111130.0,0.44752745]
[1756886250365,0.41314,111140.0,111130.0,1.26632745]
[1756886255866,0.41314,111140.0,111130.0,1.25723545]
[1756886256066,0.41314,111140.0,111130.0,0.90722]
[1756886256265,0.41314,111140.0,111130.0,1.25715545]
[1756886258265,0.41314,111140.0,111130.0,0.90714]
[1756886258465,0.41314,111140.0,111130.0,1.25715545]
[1756886259864,0.38364,111140.0,111130.0,1.25715545]
[1756886260067,0.41314,111140.0,111130.0,0.90714]
[1756886260266,0.41314,111140.0,111130.0,1.25715545]
[1756886260468,0.35922,111140.0,111130.0,1.25715545]
[1756886261774,0.38872,111140.0,111130.0,1.60715545]
[1756886262373,0.38872,111140.0,111130.0,1.25715545]
[1756886262673,0.38872,111140.0,111130.0,1.62715545]
[1756886263868,0.41155,111140.0,111130.0,0.80843545]
[1756886264069,0.41155,111140.0,111130.0,1.62711545]
[1756886266776,0.43362894,111140.0,111130.0,1.62711545]
[1756886267076,0.38129894,111140.0,111130.0,1.62711545]
[1756886272772,0.41079894,111140.0,111130.0,1.62711545]
[1756886275586,0.38129894,111140.0,111130.0,1.62711545]
[1756886277192,0.38129894,111140.0,111130.0,1.25711545]
[1756886277493,0.41079894,111140.0,111130.0,1.62711545]
[1756886278193,0.40579894,111140.0,111130.0,1.62711545]
[1756886280096,0.37629894,111140.0,111130.0,1.62711545]
[1756886281791,0.39912894,111140.0,111130.0,1.62699545]
[1756886281991,0.39912894,111140.0,111130.0,1.61699545]
[1756886282200,0.42862894,111140.0,111130.0,1.61699545]
[1756886282499,0.42862894,111140.0,111130.0,0.90694]
[1756886282699,0.42862894,111140.0,111130.0,1.25695545]
[1756886283099,0.06207894,111140.0,111130.0,1.60695545]
[1756886283491,0.06207894,111140.0,111130.0,1.85695545]
[1756886283689,0.04,111140.0,111130.0,1.85695545]
[1756886283892,0.0001,111150.0,111140.0,0.08299]
[1756886284095,0.32,111150.0,111140.0,0.75300545]
[1756886284300,0.32,111150.0,111140.0,1.02088338]
[1756886284491,0.0001,111160.0,111150.0,0.09719]
[1756886284705,0.34,111160.0,111150.0,1.58572545]
[1756886285001,0.34,111160.0,111150.0,0.76720545]
[1756886285202,0.34,111160.0,111150.0,0.81169545]
[1756886285403,0.34,111160.0,111150.0,1.27017545]
[1756886285701,0.34,111160.0,111150.0,0.45169545]
[1756886286001,0.41646,111160.0,111150.0,1.27017545]
[1756886286302,0.38696,111160.0,111150.0,1.27017545]
[1756886286502,0.36413,111160.0,111150.0,1.27017545]
[1756886290507,0.34,111160.0,111150.0,1.27017545]
[1756886290702,0.34,111160.0,111150.0,1.63017545]
[1756886291906,0.34,111160.0,111150.0,0.81169545]
[1756886292105,0.34,111160.0,111150.0,0.45169545]
[1756886292306,0.34,111160.0,111150.0,1.58005545]
[1756886292508,0.36346,111160.0,111150.0,0.45169545]
[1756886292805,0.36346,111160.0,111150.0,1.20013545]
[1756886293105,0.34,111160.0,111150.0,1.20013545]
[1756886293399,0.41697,111160.0,111150.0,0.45169545]
[1756886293606,0.41697,111160.0,111150.0,1.27005545]
[1756886293900,0.38747,111160.0,111150.0,1.65005545]
[1756886294106,0.38747,111160.0,111150.0,1.62005545]
[1756886294300,0.38747,111160.0,111150.0,0.83169545]
[1756886294503,0.34,111160.0,111150.0,1.65001545]
[1756886296310,0.34,111160.0,111150.0,1.64001545]
[1756886297510,0.34,111160.0,111150.0,1.81456932]
[1756886299611,0.34,111160.0,111150.0,1.44456932]
[1756886299806,0.34,111160.0,111150.0,1.80456932]
[1756886306311,1.19153932,111160.0,111150.0,0.10168]
[1756886306519,0.95128391,111160.0,111150.0,1.18212466]
[1756886309519,0.95128391,111160.0,111150.0,0.36396466]
[1756886309720,0.95128391,111160.0,111150.0,1.18212466]
[1756886310329,0.68899925,111160.0,111150.0,1.18212466]
[1756886310820,0.68899925,111160.0,111150.0,0.36396466]
[1756886311121,0.68899925,111160.0,111150.0,1.18212466]
[1756886312613,0.95128391,111160.0,111150.0,1.18212466]
[1756886313724,0.68899925,111160.0,111150.0,1.18212466]
[1756886314022,0.95128391,111160.0,111150.0,1.18212466]
[1756886324019,0.95128391,111160.0,111150.0,1.18204466]
[1756886324731,0.68899925,111160.0,111150.0,1.18204466]
[1756886324926,0.95128391,111160.0,111150.0,1.18204466]
[1756886327335,0.68899925,111160.0,111150.0,1.18204466]
[1756886327728,0.95128391,111160.0,111150.0,1.18204466]
[1756886329242,0.68899925,111160.0,111150.0,1.18204466]
[1756886329835,0.95128391,111160.0,111150.0,1.18204466]
[1756886339246,0.70128391,111160.0,111150.0,1.18204466]
[1756886339434,0.43899925,111160.0,111150.0,1.18204466]
[1756886339637,0.70128391,111160.0,111150.0,1.18204466]
[1756886340038,0.70128391,111160.0,111150.0,1.18188466]
[1756886342149,0.43899925,111160.0,111150.0,1.18188466]
[1756886342335,0.67925466,111160.0,111150.0,1.18188466]
[1756886342541,0.70130252,111160.0,111150.0,1.18188466]
[1756886344038,0.43901786,111160.0,111150.0,1.18188466]
[1756886344246,0.70130252,111160.0,111150.0,1.18188466]
[1756886348362,0.70130252,111160.0,111150.0,0.36396466]
[1756886348563,0.70130252,111160.0,111150.0,0.91952]
[1756886348760,0.70130252,111160.0,111150.0,1.18180466]
[1756886349764,0.70130252,111160.0,111150.0,0.91952]
[1756886349965,0.43901786,111160.0,111150.0,1.18180466]
[1756886350160,0.70130252,111160.0,111150.0,1.18180466]
[1756886350365,0.43901786,111160.0,111150.0,1.18180466]
[1756886351165,0.70130252,111160.0,111150.0,1.18180466]
[1756886351563,0.43901786,111160.0,111150.0,1.18180466]
[1756886353067,0.43901786,111160.0,111150.0,0.91952]
[1756886353365,0.43901786,111160.0,111150.0,1.18180466]
[1756886355567,0.43901786,111160.0,111150.0,0.91952]
[1756886355758,0.43901786,111160.0,111150.0,1.18180466]
[1756886357461,0.41697,111160.0,111150.0,1.18180466]
[1756886357667,0.43900502,111160.0,111150.0,1.18180466]
[1756886359471,0.43900502,111160.0,111150.0,1.26931168]
[1756886363378,0.38549502,111160.0,111150.0,1.26931168]
[1756886365878,0.41499502,111160.0,111150.0,1.26931168]
[1756886366080,0.43902502,111160.0,111150.0,1.26931168]
[1756886370587,0.43902502,111160.0,111150.0,0.45147168]
[1756886370779,0.43902502,111160.0,111150.0,1.26907168]
[1756886370979,0.43902502,111160.0,111150.0,0.45147168]
[1756886371180,0.43902502,111160.0,111150.0,1.26907168]
[1756886372282,0.38549502,111160.0,111150.0,1.26907168]
[1756886375981,0.36203502,111160.0,111150.0,1.26907168]
[1756886379684,0.36203502,111160.0,111150.0,0.45147168]
[1756886379889,0.36203502,111160.0,111150.0,1.26899168]
[1756886381191,0.43906502,111160.0,111150.0,0.9192]
[1756886381392,0.43906502,111160.0,111150.0,0.45147168]
[1756886381586,0.43906502,111160.0,111150.0,1.26899168]
[1756886384990,0.38553502,111160.0,111150.0,1.26899168]
[1756886385193,0.36203502,111160.0,111150.0,1.26899168]
[1756886387895,0.40983502,111160.0,111150.0,0.45147168]
[1756886388095,0.40983502,111160.0,111150.0,1.26891168]
[1756886388993,0.40983502,111160.0,111150.0,0.45147168]
[1756886389193,0.43933502,111160.0,111150.0,1.26891168]
[1756886389516,0.43933502,111160.0,111150.0,0.91912]
[1756886389801,0.43933502,111160.0,111150.0,1.26891168]
[1756886390001,0.43933502,111160.0,111150.0,0.10168]
[1756886390202,0.7891267,111160.0,111150.0,0.10168]
[1756886390408,0.7891267,111160.0,111150.0,0.54428]
[1756886391602,0.7891267,111160.0,111150.0,0.10168]
[1756886392402,0.43933502,111160.0,111150.0,0.10168]
[1756886395406,0.4173,111160.0,111150.0,0.45147168]
[1756886395604,0.43939219,111160.0,111150.0,0.45147168]
[1756886397203,0.43939219,111160.0,111150.0,0.10168]
[1756886400303,0.4173,111160.0,111150.0,0.10168]
[1756886400503,0.4173,111160.0,111150.0,0.00449]
[1756886400504,0.43939033,111160.0,111150.0,0.00449]
[1756886400697,0.43939033,111160.0,111150.0,0.02736]
[1756886400906,0.68939033,111160.0,111150.0,0.00449]